Workbook

Sheet Index
C8: Historical Series Spreadsheet
C10: 1. Quarterly Balance Sheet
C11: 2. Quarterly Accounting FS
C12: 3. Annual Accounting FS
C13: 4. Quarterly Managerial FS
C14: 5. Annual Managerial FS
C15: 6. Expanded Portfolio
C16: 7. Funding
C17: 8. Efficiency and Remuneration
C18: 9. Capital Adequacy
C19: 10. Volume of Transactions
C21: Reference Date | E21: June 30th, 2022
C22: Contact: | E22: ri@brpartners.com.br

Sheet BS (quarterly)
A5: Historical Series Spreadsheet
A7: Balance Sheet (consolidated)
A8: (In thousands of reais)
B9: 12/31/2020 | C9: 03/31/2021 | D9: 06/30/2021 | E9: 09/30/2021 | F9: 12/31/2021 | G9: 03/31/2022 | H9: 2022-06-30
A10: Assets
A11: Cash and Cash Equivalents | B11: 47102 | C11: 49198 | D11: 105778 | E11: 82388 | F11: 94132 | G11: 184467 | H11: ='[1]BP (Trimestral)'!$H$11 -> 103013
A12: Financial Assets at Fair Value through Profit or Loss | B12: 540349 | C12: 593666 | D12: 822251 | E12: 2006311 | F12: 2368744 | G12: 3141911 | H12: ='[1]BP (Trimestral)'!$H$12 -> 4293937
A13: Government Bonds | B13: 151462 | C13: 151400 | D13: 397109 | E13: 1462171 | F13: 1803817 | G13: 2549499 | H13: ='[1]BP (Trimestral)'!$H$13 -> 3677256
A14: Private Securities | B14: 255960 | C14: 325978 | D14: 296826 | E14: 329070 | F14: 325438 | G14: 360273 | H14: ='[1]BP (Trimestral)'!$H$14 -> 384491
A15: Investment Funds Quotas | B15: 132927 | C15: 116288 | D15: 128316 | E15: 215070 | F15: 239489 | G15: 232139 | H15: ='[1]BP (Trimestral)'!$H$15 -> 232190
A16: Financial Assets at Fair Value Through other Results | B16: 0 | C16: 25144 | D16: 206534 | E16: 217933 | F16: 257594 | G16: 427587 | H16: ='[1]BP (Trimestral)'!H$16 -> 515006
A17: Private Securities | B17: 0 | C17: 25144 | D17: 206534 | E17: 191425 | F17: 230759 | G17: 399359 | H17: ='[1]BP (Trimestral)'!H$17 -> 484667
A18: Investment Funds Quotas | E18: 26508 | F18: 26835 | G18: 28228 | H18: ='[1]BP (Trimestral)'!$H$18 -> 30339
A19: Derivative Financial Instruments | B19: 38090 | C19: 54101 | D19: 91766 | E19: 142886 | F19: 149852 | G19: 246438 | H19: ='[1]BP (Trimestral)'!$H$19 -> 177823
A20: Financial Assets at Amortized Costs | B20: 85609 | C20: 193094 | D20: 153387 | E20: 130318 | F20: 81568 | G20: 90584 | H20: ='[1]BP (Trimestral)'!$H$20 -> 235816
A21: Loans Operations | B21: 28802 | C21: 21344 | D21: 72551 | E21: 67715 | F21: 56823 | G21: 55847 | H21: ='[1]BP (Trimestral)'!$H$21 -> 172577
A22: Other Financial Assets at Amortized costs | B22: 56807 | C22: 171750 | D22: 80836 | E22: 62603 | F22: 24745 | G22: 34737 | H22: ='[1]BP (Trimestral)'!$H$22 -> 63239
A23: Other Assets | B23: 28614 | C23: 8578 | D23: 17457 | E23: 23881 | F23: 57856 | G23: 24087 | H23: ='[1]BP (Trimestral)'!H$23 -> 24564
A24: Deferred Tax Assets | B24: 12470 | C24: 12443 | D24: 19636 | E24: 25017 | F24: 28154 | G24: 24149 | H24: ='[1]BP (Trimestral)'!H$24 -> 19760
A25: Investments in Subsidiaries | B25: - | C25: - | D25: - | E25: - | F25: - | G25: - | H25: ='[1]BP (Trimestral)'!H$25 -> 0
A26: Fixed Assets | B26: 3609 | C26: 3325 | D26: 2794 | E26: 5127 | F26: 4721 | G26: 6493 | H26: ='[1]BP (Trimestral)'!H$26 -> 44942
A27: Intangible Assets | B27: 5568 | C27: 5458 | D27: 5363 | E27: 5488 | F27: 5360 | G27: 5241 | H27: ='[1]BP (Trimestral)'!H$27 -> 5098
A29: Total Assets | B29: =B11+B12+B16+B19+B20+B23+B24+B26+B27 -> 761411 | C29: =C11+C12+C16+C19+C20+C23+C24+C26+C27 -> 945007 | D29: 1424966 | E29: 2639349 | F29: 3047981 | G29: 4150957 | H29: 5419959
A31: Liabilities
A32: Financial Liabilities at Amortized Cost | B32: 289506 | C32: 501211 | D32: 517339 | E32: 1672046 | F32: 1959050 | G32: 3091236 | H32: ='[1]BP (Trimestral)'!H32 -> 4320857
A33: Funds from Repurchase Operations | B33: - | C33: 21000 | D33: 49002 | E33: 1100999 | F33: 1228129 | G33: 2080001 | H33: ='[1]BP (Trimestral)'!H33 -> 3230080
A34: Clients funds | B34: 252869 | C34: 348725 | D34: 414184 | E34: 513725 | F34: 671744 | G34: 846008 | H34: ='[1]BP (Trimestral)'!H34 -> 912313
A35: Funds from Bond Inssuances | B35: 7021 | C35: 6436 | D35: 17089 | E35: 55029 | F35: 59177 | G35: 150236 | H35: ='[1]BP (Trimestral)'!H35 -> 155906
A36: Other Financial Instruments | B36: 29616 | C36: 125050 | D36: 37064 | E36: 2293 | F36: - | G36: 14991 | H36: ='[1]BP (Trimestral)'!H36 -> 22558
A37: Derivative Financial Instruments | B37: 15457 | C37: 23261 | D37: 56521 | E37: 24655 | F37: 70478 | G37: 173835 | H37: ='[1]BP (Trimestral)'!H37 -> 125094
A38: Amounts Payable | B38: 3686 | C38: 8481 | D38: 7795 | E38: 8802 | F38: 53244 | G38: 5862 | H38: ='[1]BP (Trimestral)'!H38 -> 4572
A39: Taxes Payables | B39: 31597 | C39: 4127 | D39: 7412 | E39: 9293 | F39: 7170 | G39: 8985 | H39: ='[1]BP (Trimestral)'!H39 -> 10265
A40: Current Tax Liabilities | B40: 32870 | C40: 13189 | D40: 30338 | E40: 48004 | F40: 40801 | G40: 9541 | H40: ='[1]BP (Trimestral)'!H40 -> 37033
A41: Diferred Tax Liabilities | B41: 23218 | C41: 31347 | D41: 36152 | E41: 49521 | F41: 53084 | G41: 66078 | H41: ='[1]BP (Trimestral)'!H41 -> 56867
A42: Other Amounts Payable | B42: 69869 | C42: 37498 | D42: 37469 | E42: 55206 | F42: 96948 | G42: 34746 | H42: ='[1]BP (Trimestral)'!H42 -> 107748
A43: Lease Liabilities | B43: 1463 | C43: 1242 | D43: 840 | E43: 426 | F43: - | G43: 1985 | H43: ='[1]BP (Trimestral)'!H43 -> 0
A45: Total Liabilities | B45: =B32+SUM(B37:B43) -> 467666 | C45: 620356 | D45: 693866 | E45: 1867953 | F45: 2280775 | G45: 3392268 | H45: 4662436
A47: Shareholders' Equity
A48: Capital | B48: 268843 | C48: 268843 | D48: 669243 | E48: 669243 | F48: 669243 | G48: 674940 | H48: ='[1]BP (Trimestral)'!H48 -> 674940
A49: Capital Reserves | B49: 3653 | C49: 3653 | D49: -26530 | E49: -25263 | F49: -28963 | G49: -29976 | H49: ='[1]BP (Trimestral)'!H49 -> -30193
A50: Profit Reserves | B50: 21249 | C50: 21249 | D50: 22961 | E50: 21249 | F50: 128689 | G50: 76574 | H50: ='[1]BP (Trimestral)'!H50 -> 76574
A51: Other Comprehensive Results | E51: -1538 | F51: -1763 | G51: -2904 | H51: ='[1]BP (Trimestral)'!H51 -> -3016
A52: Retained earnings | C52: 30906 | D52: 65426 | E52: 107705 | G52: 40055 | H52: ='[1]BP (Trimestral)'!H52 -> 39218
A54: Total Shareholders' Equity | B54: =SUM(B48:B51) -> 293745 | C54: =SUM(C48:C52) -> 324651 | D54: =SUM(D48:D52) -> 731100 | E54: 771396 | F54: 767206 | G54: =SUM(G48:G52) -> 758689 | H54: =SUM(H48:H52) -> 757523
A56: Total Liabilities and Shareholders' Equity | B56: =B45+B54 -> 761411 | C56: 945007 | D56: 1424966 | E56: 2639349 | F56: 3047981 | G56: 4150957 | H56: 5419959

Sheet FS (quarterly)
A5: Historical Series Spreadsheet
A7: Accounting FS (consolidated)
A8: (In thousands of reais)
B9: 1Q20 | C9: 2Q20 | D9: 3Q20 | E9: 4Q20 | F9: 1Q21 | G9: 2Q21 | H9: 3Q21 | I9: 4Q21 | J9: 1Q22 | K9: 2Q22
A11: Interest income and gains on financial instruments | B11: 427420.1078 | C11: 406837.2921 | D11: 192510.1143 | E11: 196935.5223 | F11: 344889 | G11: 472210 | H11: 596714 | I11: 649939 | J11: ='[2]DRE Contábil '!$M$4 -> 45556 | K11: ='[1]DRE Contábil (Trimestral)'!$K$11 -> 772814
A12: Interest expense and losses on financial instruments | B12: -412676.7607 | C12: -395163.4079 | D12: -183097.8351 | E12: -186016.71 | F12: -324459 | G12: -454005 | H12: -556154 | I12: -612363 | J12: ='[2]DRE Contábil '!$M$3-'[2]DRE Contábil '!$M$4 -> 52933 | K12: ='[1]DRE Contábil (Trimestral)'!$K$12 -> -730089
A14: Net interest income and gains / losses on financial instruments | B14: =B11+B12 -> 14743.34709 | C14: =C11+C12 -> 11673.88426 | D14: =D11+D12 -> 9412.27916 | E14: 10918.81234 | F14: 20430 | G14: 18205 | H14: 40560 | I14: 37576 | J14: 98489 | K14: 42725
A16: Income from service provision | B16: 33047 | C16: 55006 | D16: 45140 | E16: 56086 | F16: 57890 | G16: 61564 | H16: 61859 | I16: 45280 | J16: ='[2]DRE Contábil '!$M$5 -> 52933 | K16: ='[1]DRE Contábil (Trimestral)'!$K$16 -> 57955
A17: Expenses for specialized technical services | B17: -3094 | C17: -3853 | D17: -3132 | E17: -7353 | F17: -3180 | G17: -3212 | H17: -2432 | I17: -3713 | J17: ='[2]DRE Contábil '!$M$7 -> - | K17: ='[1]DRE Contábil (Trimestral)'!$K$17 -> -
A18: Other Revenues | B18: 1842.848 | C18: 674.348 | D18: 727 | E18: 427 | F18: 563 | G18: -333 | H18: 81 | I18: 83 | J18: ='[2]DRE Contábil '!$M$8 -> - | K18: ='[1]DRE Contábil (Trimestral)'!$K$18 -> -
A20: Total Service Revenue | B20: =SUM(B16:B18) -> 31795.848 | C20: =SUM(C16:C18) -> 51827.348 | D20: 42735 | E20: 49160 | F20: 55273 | G20: 58019 | H20: 59508 | I20: 41650 | J20: 52933 | K20: 57955
A22: Total Revenue | B22: =B14+B20 -> 46539.19509 | C22: 63501.23226 | D22: 52147.27916 | E22: 60078.81234 | F22: 75703 | G22: 76224 | H22: 100068 | I22: 79226 | J22: 151422 | K22: 100680
A24: Personnel expenses | B24: -6809 | C24: -9433 | D24: -9247 | E24: -22921 | F24: -15532 | G24: -22193 | H24: -25536 | I24: -21022 | J24: ='[2]DRE Contábil '!$M$10 -> -20757 | K24: ='[1]DRE Contábil (Trimestral)'!$K$24 -> -20527
A25: Administrative expenses | B25: -9894 | C25: -9631 | D25: -10643 | E25: -3243 | F25: -7084 | G25: -3223 | H25: -5334 | I25: -8700 | J25: ='[2]DRE Contábil '!$M$11+'[2]DRE Contábil '!$M$12 -> -10063 | K25: ='[1]DRE Contábil (Trimestral)'!$K$25 -> -12852
A26: Loss due to impairment | B26: 27 | C26: -96 | D26: -96 | E26: -194 | F26: 31 | G26: -439 | H26: 353 | I26: 131 | J26: ='[2]DRE Contábil '!$M$13 -> 224 | K26: ='[1]DRE Contábil (Trimestral)'!$K$26 -> -1047
A27: Other revenues | B27: 0 | C27: 0 | D27: 0 | E27: 0 | F27: 0 | G27: 0 | H27: 0 | I27: 0 | J27: 0 | K27: ='[1]DRE Contábil (Trimestral)'!$K$27 -> 377
A28: Other expenses | B28: -908.442 | C28: -1190.122 | D28: -1053 | E28: -3767 | F28: -719 | G28: -173 | H28: -1237 | I28: -1584 | J28: ='[2]DRE Contábil '!$M$14 -> -999 | K28: ='[1]DRE Contábil (Trimestral)'!$K$28 -> -2808
A30: Operational expenses | B30: =SUM(B24:B28) -> -17584.442 | C30: -20350.122 | D30: -21039 | E30: -30125 | F30: -23304 | G30: -26028 | H30: -31754 | I30: -31175 | J30: -31595 | K30: -36857
A32: Non-operating result | B32: -46 | C32: -717 | D32: -1257 | E32: 2397 | F32: 4 | G32: 5 | H32: 54 | I32: 44 | J32: ='[2]DRE Contábil '!$M$15 -> -692 | K32: ='[1]DRE Contábil (Trimestral)'!$K$32 -> -455
A33: Income before income taxes and equity equivalence results | B33: 28908.75309 | C33: 42434.11026 | D33: 29851.27916 | E33: 32350.81234 | F33: 52403 | G33: 50201 | H33: 68368 | I33: 48095 | J33: =J22+J30+J32 -> 119135 | K33: =K22+K30+K32 -> 63368
A35: Equity pickup result | B35: - | C35: - | D35: - | E35: - | F35: - | G35: - | H35: - | I35: - | J35: - | K35: ='[1]DRE Contábil (Trimestral)'!$K$35 -> -
A36: Income before income taxes | B36: 28909 | C36: 42434.11 | D36: 29851.27916 | E36: 32350.81234 | F36: 52403 | G36: 50201 | H36: 68368 | I36: 48095 | J36: ='[2]DRE Contábil '!$M$16 -> 66202 | K36: ='[1]DRE Contábil (Trimestral)'!$K$36 -> 63368
A38: Taxes on profits | B38: -7261 | C38: -18634 | D38: -9192 | E38: -9722 | F38: -21428 | G38: -15232 | H38: -26607 | I38: -17140 | J38: ='[2]DRE Contábil '!$M$18 -> -26147 | K38: ='[1]DRE Contábil (Trimestral)'!$K$38 -> -23257
A39: Net income for the period | B39: =B36+B38 -> 21648 | C39: =C36+C38 -> 23800.11 | D39: 20659.27916 | E39: 22628.81234 | F39: 30975 | G39: 34969 | H39: 41761 | I39: 30955 | J39: 40055 | K39: 40111

Sheet Accounting FS (annual)
A5: Historical Series Spreadsheet
A7: Accounting FS (consolidated)
A8: (In thousands of reais)
B9: 2020 | C9: 2021
A11: Interest income and gains on financial instruments | B11: 1223703 | C11: 2063752
A12: Interest expense and losses on financial instruments | B12: -1176956 | C12: -1946981
A14: Net interest income and gains / losses on financial instruments | B14: =B11+B12 -> 46747 | C14: =C11+C12 -> 116771
A16: Income from service provision | B16: 189279 | C16: 226593
A17: Expenses for specialized technical services | B17: -17432 | C17: -12537
A18: Other Revenues | B18: 3672 | C18: 394
A20: Total Service Revenue | B20: =SUM(B16:B18) -> 175519 | C20: =SUM(C16:C18) -> 214450
A22: Total Revenue | B22: =B14+B20 -> 222266 | C22: =C14+C20 -> 331221
A24: Personnel expenses | B24: -48410 | C24: -84283
A25: Administrative expenses | B25: -33411 | C25: -24341
A26: Loss due to impairment | B26: -359 | C26: 76
A27: Other expenses | B27: -6918.564 | C27: -3713
A29: Operational expenses | B29: =SUM(B24:B27) -> -89098.564 | C29: =SUM(C24:C27) -> -112261
A31: Non-operating result | B31: 377 | C31: 107
A32: Income before income taxes and equity equivalence results | B32: =B22+B29+B31 -> 133544.436 | C32: =C22+C29+C31 -> 219067
A34: Equity pickup result | B34: - | C34: -
A35: Income before income taxes | B35: =B32 -> 133544.436 | C35: =C32 -> 219067
A37: Taxes on profits | B37: -44809 | C37: -80407
A38: Net income for the period | B38: 88735.67534 | C38: 138660
A40: Result attributed to the Company's Shareholders | B40: =B38 -> 88735.67534 | C40: 138660

Sheet Managerial FS (quarterly)
A5: Historical Series Spreadsheet
A7: Managerial Financial Statement (consolidated)
A8: (In millions of reais)
B10: 1Q20 | C10: 2Q20 | D10: 3Q20 | E10: 4Q20 | F10: 1Q21 | G10: 2Q21 | H10: 3Q21 | I10: 4Q21 | J10: 1Q22 | K10: 2Q22
A11: Total Revenues | B11: =SUM(B12:B16) -> 46.539 | C11: =SUM(C12:C16) -> 63.502 | D11: 52.147 | E11: 60.078 | F11: 75.70278459 | G11: 76.22460294 | H11: 100.0683179 | I11: 79.2258117 | J11: 98.48949132 | K11: 100.68
A12: Investment Banking | B12: 22.737 | C12: 44.627 | D12: 28.152 | E12: 35.375 | F12: 43.246 | G12: 43.3118 | H12: 42.81377668 | I12: 26.59751671 | J12: ='[2]DRE Gerencial & Principais Info'!$C$11 -> 35.23970885 | K12: ='[1]DRE Gerencial (Trimestral)'!$K$12 -> 37.96170685
A13: Capital Markets | B13: 11.266 | C13: 10.992 | D13: 18.094 | E13: 16.949 | F13: 23.372 | G13: 18.403 | H13: 22.488 | I13: 19.0308769 | J13: ='[2]DRE Gerencial & Principais Info'!$C$12 -> 23.31672278 | K13: ='[1]DRE Gerencial (Trimestral)'!$K$13 -> 23.72148958
A14: Treasury Sales & Structuring | B14: 1.308 | C14: 6.061 | D14: 3.804 | E14: 4.196 | F14: 4.00079037 | G14: 10.3742 | H14: 23.982 | I14: 14.19294279 | J14: ='[2]DRE Gerencial & Principais Info'!$C$15 -> 14.71894624 | K14: ='[1]DRE Gerencial (Trimestral)'!$K$14 -> 19.22690892
A15: Investments | B15: 0.566 | C15: 0.697 | D15: 0.613 | E15: 0.668 | F15: 0.59399422 | G15: 0.67049835 | H15: 0.8071168 | I15: 4.78677304 | J15: ='[2]DRE Gerencial & Principais Info'!$C$16 -> 1.182635189 | K15: ='[1]DRE Gerencial (Trimestral)'!$K$15 -> 1.179707121
A16: Capital Revenues | B16: 10.662 | C16: 1.125 | D16: 1.484 | E16: 2.89 | F16: 4.49 | G16: 3.465104594 | H16: 9.977424452 | I16: 14.61770226 | J16: ='[2]DRE Gerencial & Principais Info'!$C$17 -> 24.03147825 | K16: ='[1]DRE Gerencial (Trimestral)'!$K$16 -> 18.59018753
A17: Expenses | B17: =SUM(B18:B20) -> -17.584442 | C17: =SUM(C18:C20) -> -20.350122 | D17: -21.039 | E17: -30.125 | F17: -23.304 | G17: -26.028 | H17: -31.754 | I17: -31.175 | J17: =SUM(J18:J20) -> -31.595 | K17: =SUM(K18:K20) -> -36.857
A18: Personnel | B18: -6.809 | C18: -9.433 | D18: -9.247 | E18: -22.921 | F18: -15.532 | G18: -22.193 | H18: -25.536 | I18: -21.022 | J18: ='[2]DRE Gerencial & Principais Info'!$C$19 -> -20.757 | K18: ='[1]DRE Gerencial (Trimestral)'!$K$18 -> -20.527
A19: Administrative | B19: -9.894 | C19: -9.631 | D19: -10.643 | E19: -3.243 | F19: -7.084 | G19: -3.223 | H19: -5.334 | I19: -8.7 | J19: ='[2]DRE Gerencial & Principais Info'!$C$20 -> -10.063 | K19: ='[1]DRE Gerencial (Trimestral)'!$K$19 -> -12.852
A20: Others | B20: -0.881442 | C20: -1.286122 | D20: -1.149 | E20: -3.961 | F20: -0.688 | G20: -0.612 | H20: -0.884 | I20: -1.453 | J20: ='[2]DRE Gerencial & Principais Info'!$C$21 -> -0.775 | K20: ='[1]DRE Gerencial (Trimestral)'!$K$20 -> -3.478
A21: Operating Profit | B21: =B11+B17 -> 28.954558 | C21: =C11+C17 -> 43.151878 | D21: 31.108 | E21: 29.953 | F21: 52.39878459 | G21: 50.19660294 | H21: 68.31431793 | I21: 48.0508117 | J21: 66.89449132 | K21: 63.823
A22: Non-operating Profit | B22: -0.046 | C22: -0.717 | D22: -1.257 | E22: 2.397 | F22: 0.004 | G22: 0.005 | H22: 0.054 | I22: 0.044 | J22: ='[1]DRE Gerencial (Trimestral)'!$J$22 -> -0.692 | K22: ='[1]DRE Gerencial (Trimestral)'!$K$22 -> -0.455
A23: IR & CSLL | B23: -7.261 | C23: -18.634 | D23: -9.192 | E23: -9.722 | F23: -21.428 | G23: -15.232 | H23: -26.607 | I23: -17.14 | J23: ='[2]DRE Gerencial & Principais Info'!$C$25 -> -26.147 | K23: ='[1]DRE Gerencial (Trimestral)'!$K$23 -> -23.257
A24: Net Income | B24: 21.647558 | C24: 23.800878 | D24: 20.659 | E24: 22.628 | F24: 30.97478459 | G24: 34.96960294 | H24: 41.76131793 | I24: 30.9548117 | J24: =SUM(J21:J23) -> 40.05549132 | K24: 40.111
A25: Net Margin | B25: =B24/B11 -> 0.465148757 | C25: =C24/C11 -> 0.3748051715 | D25: 0.3961685236 | E25: 0.3766436965 | F25: 0.4091630811 | G25: 0.4587705491 | H25: 0.4173280694 | I25: 0.3907162456 | J25: 0.4066981236 | K25: 0.3984008741
A27: ROAE | B27: 0.2722227071 | C27: 0.306887837 | D27: 0.2737107085 | E27: 0.2979088557 | F27: 0.4007113188 | G27: 0.2649837164 | H27: 0.2223570269 | I27: 0.1609503261 | J27: ='[2]DRE Gerencial & Principais Info'!$C$74 -> 0.2100039194 | K27: ='[1]DRE Gerencial (Trimestral)'!$K$27 -> 0.2116379504

Sheet Managerial FS (annual)
A5: Historical Series Spreadsheet
A7: Managerial Financial Statement (consolidated)
A8: (In millions of reais)
B10: 2020 | C10: 2021
A11: Total Revenues | B11: =SUM(B12:B16) -> 222.266 | C11: =SUM(C12:C16) -> 331.2215172
A12: Investment Banking | B12: 130.891 | C12: 155.9690934
A13: Capital Markets | B13: 57.301 | C13: 83.2938769
A14: Treasury Sales & Structuring | B14: 15.369 | C14: 52.54993316
A15: Investments | B15: 2.544 | C15: 6.85838241
A16: Capital Revenues | B16: 16.161 | C16: 32.55023131
A17: Expenses | B17: =SUM(B18:B20) -> -89.098564 | C17: =SUM(C18:C20) -> -112.261
A18: Personnel | B18: -48.41 | C18: -84.283
A19: Administrative | B19: -33.411 | C19: -24.341
A20: Others | B20: -7.277564 | C20: -3.637
A21: Operating Profit | B21: =B11+B17 -> 133.167436 | C21: =C11+C17 -> 218.9605172
A22: Non-operating Profit | B22: 0.377 | C22: 0.107
A23: Equity Income Result | B23: 0 | C23: 0
A24: IR & CSLL | B24: -44.809 | C24: -80.407
A25: Net Income | B25: 88.735436 | C25: 138.6605172
A26: Net Margin | B26: =B25/B11 -> 0.3992308135 | C26: =C25/C11 -> 0.4186337843
A28: ROAE | B28: 0.295265143 | C28: 0.2613891069

Sheet Expanded Portfolio
A5: Historical Series Spreadsheet
A7: Private Securities and Bridge Loans
A8: (In millions of reais)
C10: 1T20 | D10: 2Q20 | E10: 3Q20 | F10: 4Q20 | G10: 1Q21 | H10: 2Q21 | I10: 3Q21 | J10: 4Q21 | K10: 1Q22 | L10: 2Q22
A11: Corporate Securities | C11: 0 | D11: 79.04 | E11: 138.494 | F11: 179.116 | G11: 255.96 | H11: 351.122 | I11: 503.36 | J11: 573.51 | K11: ='[2]C&F'!$K$7 -> 816.086 | L11: ='[1]Carteira Expandida'!$L$11 -> 939.396
A12: Bridge Loans | C12: 0 | D12: 23.583 | E12: 29.499 | F12: 29.185 | G12: 28.802 | H12: 21.344 | I12: 72.551 | J12: 67.715 | K12: ='[2]C&F'!$K$8 -> 55.847 | L12: ='[1]Carteira Expandida'!$L$12 -> 172.577
A14: Total | C14: =SUM(C11:C12) -> 0 | D14: =SUM(D11:D12) -> 102.623 | E14: =SUM(E11:E12) -> 167.993 | F14: =SUM(F11,F12) -> 208.301 | G14: =SUM(G11,G12) -> 284.762 | H14: =SUM(H11:H12) -> 372.466 | I14: =SUM(I11:I12) -> 575.911 | J14: =SUM(J11:J12) -> 641.225 | K14: =SUM(K11:K12) -> 871.933 | L14: =SUM(L11:L12) -> 1111.973

Sheet Funding
A5: Historical Series Spreadsheet
A7: Funding and Average Term
A8: (In millions of reais)
B10: 1Q20 | C10: 2Q20 | D10: 3Q20 | E10: 4Q20 | F10: 1Q21 | G10: 2Q21 | H10: 3Q21 | I10: 4Q21 | J10: 1T22 | K10: 2Q22
A11: Founding Volume | B11: 126.5525003 | C11: 202.3779249 | D11: 255.0471449 | E11: 293.8068323 | F11: 342.0841893 | G11: 485.11 | H11: 654.513 | I11: 852.1 | J11: ='[2]C&F'!$L$73 -> 1015.842 | K11: =[1]Captação!$K$11 -> 1121.373
A12: Average Term (calendar days) former Own Resources* | B12: 13.34 | C12: 10.9 | D12: 61.45 | E12: 138.7867873 | F12: 184.3568847 | G12: 191.4055275 | H12: 263.4120114 | I12: 263.4120114 | J12: ='[2]C&F'!$L$75 -> 288.86 | K12: =[1]Captação!$K$12 -> 256.4398397
A14: 1Q21 | B14: Liquidity | C14: Until 3 months | D14: 3 to 6 months | E14: 6 months to 1 year | F14: Above 1 year
A15: Deadline per track (1Q21) | B15: 72.94 | C15: 117.813 | D15: 29.885 | E15: 93.953 | F15: 27.491
A17: 2Q21 | B17: Liquidity | C17: Until 3 months | D17: 3 to 6 months | E17: 6 months to 1 year | F17: Above 1 year
A18: Deadline per track (2Q21) | B18: 126.1 | C18: 87.3 | D18: 116.4 | E18: 121.3 | F18: 34
A20: 3Q21 | B20: Liquidity | C20: Until 3 months | D20: 3 to 6 months | E20: 6 months to 1 year | F20: Above 1 year
A21: Deadline per track (3Q21) | B21: 163.3 | C21: 117.81234 | D21: 65.4513 | E21: 209.44416 | F21: 98.17695
A23: 4Q21 | B23: Liquidity | C23: Until 3 months | D23: 3 to 6 months | E23: 6 months to 1 year | F23: Above 1 year
A24: Deadline per track (4Q21) | B24: 196 | C24: 85.2 | D24: 102.3 | E24: 264.2 | F24: 178.9
A26: 1Q22 | B26: Liquidity | C26: Until 3 months | D26: 3 to 6 months | E26: 6 months to 1 year | F26: Above 1 year
A27: Deadline per track (1Q22) | B27: 196 | C27: 85.2 | D27: ='[2]C&F'!$E$67 -> 0.18 | E27: ='[2]C&F'!$F$67 -> 0.42 | F27: ='[2]C&F'!$G$67 -> 0.2
A29: 2Q22 | B29: Liquidity | C29: Until 3 months | D29: 3 to 6 months | E29: 6 months to 1 year | F29: Above 1 year
A30: Deadline per track (2Q22) | B30: =[1]Captação!$B$30 -> 112.1373 | C30: =[1]Captação!$C$30 -> 190.63341 | D30: =[1]Captação!$D$30 -> 168.20595 | E30: =[1]Captação!$E$30 -> 437.33547 | F30: =[1]Captação!$F$30 -> 213.06087
A34: *Since this quarter we started to show the average term excluding own resources, considering only third-party resources

Sheet Efficiency & Compensation
A5: Historical Series Spreadsheet
A7: Efficiency & Compensation
A8: (In millions of reais)
B10: 1Q20 | C10: 2Q20 | D10: 3Q20 | E10: 4Q20 | F10: 1Q21 | G10: 2Q21 | H10: 3Q21 | I10: 4Q21 | J10: 1Q22 | K10: 2Q22
A11: Efficiency Ratio* | B11: =(B14+B15)/(B17+B16)*-1 -> 0.3658320929 | C11: 0.3064169568 | D11: 0.3900152947 | E11: =(E14+E15)/(E17+E16)*-1 -> 0.4662401768 | F11: 0.3014872351 | G11: 0.3361344407 | H11: 0.3112387184 | I11: 0.382164401 | J11: =(J14+J15)/(J17+J16)*-1 -> 0.3154086931 | K11: =(K14+K15)/(K17+K16)*-1 -> 0.343398284
A12: Compesation Ratio** | B12: =(B14)/B17*-1 -> 0.1463073981 | C12: =(C14)/C17*-1 -> 0.1485465025 | D12: 0.1773256371 | E12: 0.3815206898 | F12: 0.2051707884 | G12: 0.2911527137 | H12: 0.2551856624 | I12: 0.2653428163 | J12: 0.2107534492 | K12: 0.2038835916
A13: Expenses | B13: =SUM(B14:B16) -> -17.584442 | C13: -20.350122 | D13: =SUM(D14:D16) -> -21.039 | E13: =SUM(E14:E16) -> -30.125 | F13: =SUM(F14:F16) -> -23.304 | G13: -26.028 | H13: -31.754 | I13: -31.175 | J13: -31.595 | K13: -36.857
A14: Personnel Expenses | B14: -6.809 | C14: -9.433 | D14: -9.247 | E14: -22.921 | F14: -15.532 | G14: -22.193 | H14: -25.536 | I14: -21.022 | J14: ='[3]DRE Gerencial (Trimestral)'!J18 -> -20.757 | K14: ='[1]Eficiência & Remuneração'!$K$14 -> -20.527
A15: Administrative Expanses | B15: -9.894 | C15: -9.631 | D15: -10.643 | E15: -3.243 | F15: -7.084 | G15: -3.223 | H15: -5.334 | I15: -8.7 | J15: ='[3]DRE Gerencial (Trimestral)'!J19 -> -10.063 | K15: ='[1]Eficiência & Remuneração'!$K$15 -> -12.852
A16: Others | B16: -0.881442 | C16: -1.286122 | D16: -1.149 | E16: -3.961 | F16: -0.688 | G16: -0.612 | H16: -0.884 | I16: -1.453 | J16: ='[3]DRE Gerencial (Trimestral)'!J20 -> -0.775 | K16: ='[1]Eficiência & Remuneração'!$K$16 -> -3.478
A17: Revenues | B17: =SUM(B18:B22) -> 46.539 | C17: =SUM(C18:C22) -> 63.502 | D17: =SUM(D18:D22) -> 52.147 | E17: =SUM(E18:E22) -> 60.078 | F17: =SUM(F18:F22) -> 75.70278459 | G17: 76.22460294 | H17: 100.0683179 | I17: 79.2258117 | J17: 98.48949132 | K17: 100.68
A18: Investment Banking | B18: 22.737 | C18: 44.627 | D18: 28.152 | E18: 35.375 | F18: 43.246 | G18: 43.3118 | H18: 42.81377668 | I18: 26.59751671 | J18: ='[3]DRE Gerencial (Trimestral)'!J12 -> 35.23970885 | K18: ='[1]Eficiência & Remuneração'!$K$18 -> 37.96170685
A19: Capital Markets | B19: 11.266 | C19: 10.992 | D19: 18.094 | E19: 16.949 | F19: 23.372 | G19: 18.403 | H19: 22.488 | I19: 19.0308769 | J19: ='[3]DRE Gerencial (Trimestral)'!J13 -> 23.31672278 | K19: ='[1]Eficiência & Remuneração'!$K$19 -> 23.72148958
A20: Treasury Sales & Structuring | B20: 1.308 | C20: 6.061 | D20: 3.804 | E20: 4.196 | F20: 4.00079037 | G20: 10.3742 | H20: 23.982 | I20: 14.19294279 | J20: ='[3]DRE Gerencial (Trimestral)'!J14 -> 14.71894624 | K20: ='[1]Eficiência & Remuneração'!$K$20 -> 19.22690892
A21: Investments | B21: 0.566 | C21: 0.697 | D21: 0.613 | E21: 0.668 | F21: 0.59399422 | G21: 0.67049835 | H21: 0.8071168 | I21: 4.78677304 | J21: ='[3]DRE Gerencial (Trimestral)'!J15 -> 1.182635189 | K21: ='[1]Eficiência & Remuneração'!$K$21 -> 1.179707121
A22: Capital Revenues | B22: 10.662 | C22: 1.125 | D22: 1.484 | E22: 2.89 | F22: 4.49 | G22: 3.465104594 | H22: 9.977424452 | I22: 14.61770226 | J22: ='[3]DRE Gerencial (Trimestral)'!J16 -> 24.03147825 | K22: ='[1]Eficiência & Remuneração'!$K$22 -> 18.59018753
A25: * Efficiency Ratio = (Personnel + Administrative Expenses) / (Total Revenue + Other Expenses)*-1
A26: ** Remuneration Index = (Personnel Expenses / Total Revenue)*-1

Sheet Capital Adequacy
A5: Historical Series Spreadsheet
A7: Capital Adequacy
A8: (In millions of reais)
B10: 1Q20 | C10: 2Q20 | D10: 3Q20 | E10: 4Q20 | F10: 1Q21 | G10: 2Q21 | H10: 3Q21 | I10: 3T21 | J10: 4Q21 | K10: 1Q22 | L10: 2Q22
A11: Reference Equity | B11: 166.2889 | C11: 169.126 | D11: 171.0308186 | E11: 247.748 | F11: 244.885 | G11: 249.8058967 | I11: 620.193 | J11: 632.7828168 | K11: ='[2]C&F'!$K$26 -> 640.319628 | L11: ='[1]Adequação de Capital'!$L$11 -> 655.2712411
A12: RWA | B12: 386.2172 | C12: 370.03 | D12: 433.150477 | E12: 626.331 | F12: 671.724 | G12: 1094.648113 | I12: 1769.923 | J12: 1834.927628 | K12: ='[2]C&F'!$K$27 -> 2222.97594 | L12: ='[1]Adequação de Capital'!$L$12 -> 2277.400006
A13: Basel | B13: =B11/B12 -> 0.4305579865 | C13: 0.4570602384 | D13: 0.394853123 | E13: 0.3955544273 | F13: 0.3645619332 | G13: 0.2282065751 | H13: 0.552 | I13: =I11/I12 -> 0.3504067691 | J13: 0.3448543731 | K13: =K11/K12 -> 0.2880461352 | L13: =L11/L12 -> 0.2877277771

Sheet Transaction Volume
A5: Historical Series Spreadsheet
A7: Transaction Volume
A8: (In millions of reais)
B10: 3M20 | C10: 6M20 | D10: 9M20 | E10: 2020 | F10: 3M21 | G10: 6M21 | H10: 9M21 | I10: 2021 | J10: 3M22 | K10: 6M22
A11: Investment Banking
A12: Announced Volume | B12: 30059.07 | C12: 30324.07 | D12: 66677.946 | E12: 107859.492 | F12: 16591.5 | G12: 60061.9201 | H12: 60221.9201 | I12: 79595.22662 | J12: ='[2]Business Units'!$H$13 -> 64.35172662 | K12: ='[1]Volume de Operações'!$K$12 -> 6493.472768
A14: Capital Markets
A15: Issuances Volume | B15: 623.468 | C15: 1058.51 | D15: 2189.284152 | E15: 3592.901115 | F15: 537.422 | G15: 1248.37 | H15: 2863.463 | I15: 4109.477 | J15: ='[2]Business Units'!$H$41 -> 2082.7 | K15: ='[1]Volume de Operações'!$K$15 -> 3663.19
A17: Sales & Trading
A18: Trading Volume (Derivatives + FX) | B18: 5276.709537 | C18: 10677.29688 | D18: 13523.81136 | E18: 17128.79735 | F18: 4026.114851 | G18: 11579.5709 | H18: 17141.41955 | I18: 23382.38575 | J18: ='[1]Volume de Operações'!$J$18 -> 5314.911411 | K18: ='[1]Volume de Operações'!$K$18 -> 10082.43444
B20: 1T20 | C20: 2T20 | D20: 3T20 | E20: 4T20 | F20: 1Q21 | G20: 2Q21 | H20: 3Q21 | I20: 4Q21 | J20: 1Q22
A21: Investments
A22: AuM FIPs (Outlet and Pet) | B22: 236.527189 | C22: 237.0735201 | D22: 237.2632519 | E22: 236.958434 | F22: 247.7429672 | G22: 255.3554328 | H22: 254.704015 | I22: 360.497859 | J22: ='[2]Business Units'!$K$82 -> 374.1709469 | K22: ='[1]Volume de Operações'!$K$22 -> 373.4939326
